Workbook

Sheet Cover
A68: Data Validation Text
A69: Yes
A70: No

Sheet GasEngines LCA and LCCA
A1: LifeCycle Analysis (LCA)
A2: Input Variable | B2: Issue | C2: Mitigation | D2: Notes by ARPA-E; Applicant may provide additional notes Green cells indicate applicant input is required.
A3: Qualitative Environmental Impacts | D3: Identify any environmental/permitting issues
A4: Noise
A5: Viewshed/Light
A6: HAPS
A7: Waste Disposal
A8: Other | D8: Please identify any additional qualitative environmental impacts, if any
A9: Regulatory/Permitting | B9: Standard | C9: Compliance | D9: Identify any permitting standards you believe will be relevant and indicate your ability to meet
A10: Regulatory Standard | B10: e.g., NSPS
A12: Test program conditions | B12: Units | C12: Value | D12: Provide ranges
A13: Design Flow Rate
A14: Test Flow Rate
A15: Feed Gas Composition
A16: Ambient Conditions
A18: Testing procedures | D18: Specify analytical method and error bars
A19: Methane
A20: Carbon Monoxide (g/MJ)
A21: Nitrogen Oxides (NOx, g/MJ)
A22: Nitrous Oxide (N2O, g/MJ)
A23: PM10/PM2.5 (soot, g/MJ)
A24: VOC (g/MJ)
A26: Process Input Parameters | C26: Carbon Intensity | D26: Specify assumptions for carbon footprint of inputs
A27: Electricity | B27: (tonnes CO2/kWh) | C27: 0.000707 | D27: E.g., per EPA, AVERT, U.S. national weighted average CO2 marginal emission rate, year 2018 data
A28: Auxiliary Fuel | B28: (kg CO2/kg)
A29: Steam | B29: (kg CO2/kg)
A30: Water | B30: (kg CO2/kW-hr)
A31: Other
A33: Life Cycle CO2e Reduction Calculations
B35: Units | C35: Input | D35: Notes by ARPA-E; Applicant may provide additional notes
A36: GHG Change from Methane Abatement Improvement
A37: Engine Rated Output | B37: (bkW) | C37: 1000
A38: Rated Speed | B38: (RPM) | C38: 1400
A39: Engine On-Stream Availability | B39: (%) | C39: 0.85 | D39: uptime
A40: Exhaust Gas Flow Rate | B40: (m3/min) (STP) | C40: 260
A41: Exhaust Gas Temperature | B41: (C) | C41: 530
A42: Fuel Consumption | B42: (MJ/bkW-hr) | C42: 10.3
A43: Fuel Heating Value | B43: (MJ/m3) | C43: 38
A44: Methane Concentration | B44: (mol %) | C44: 0.87
A45: Methane Number | B45: - | C45: 80 | D45: E.g., 70-100
A46: Methane feed to engine | B46: (tonnes/yr, CH4) | C46: =C37*C42/C43*C44/22.4*C78*C39*24*365*C81 -> 1254.20312 | D46: LCA based on only methane feed to engine. Assumes baseline 100% combustion efficiency for all non-methane hydrocarbons does not change, so non-methane emissions net out to zero
A47: Methane feed to engine | B47: (tonnes/yr, CO2 eq) | C47: =C46*C82 -> 31355.07801
A48: Methane Emissions at Rated Speed and Load | B48: (% of feed) | C48: 0.03
A49: Baseline Uncombusted Methane Emissions | B49: (tonnes/yr, CH4) | C49: =C48*C46 -> 37.62609361
A50: Baseline Uncombusted Methane Emissions, CO2e | B50: (tonnes/yr, CO2 eq) | C50: =C49*C82 -> 940.6523402
A51: Baseline CO2 Emissions Product of Methane Combustion | B51: (tonnes/yr, CO2) | C51: =C46*(1-C48)*C79/C78 -> 3345.586823
A52: Baseline Engine GHG Emissions | B52: (tonnes/yr, CO2) | C52: =C51+C50 -> 4286.239164
A53: Proposed Technology On-stream Availability when engine is running | B53: (%) | C53: 0.99 | D53: Please specify on-stream availability (and note on Line 59 any emissions when control is off-stream)
A54: Proposed Overall Combustion Efficiency, Lifetime Average {must be >(100%-C48)} | B54: (%) | C54: 0.995 | D54: Please account for any performance deterioration that would not be rectified by normal maintenance (e.g., catalyst deactivation) in this figure
A55: Change in Engine Output or Efficiency | D55: Discuss any changes due to implementing methane control technology and impact on GHG emissions
A56: Proposed Control Technology Annual Methane Emissions During Operation | B56: (tonnes/yr, CH4) | C56: =C46*C53*(1-C54) -> 6.208305445 | D56: Methane emissions when technology is operating. Uncontrolled methane emissions if engine runs when methane emissions unit is down on line 59
A57: Proposed Control Technology Annual Methane Emissions During Operation | B57: (tonnes/yr, CO2 eq) | C57: =C56*$C$82 -> 155.2076361
A58: Proposed Control Technology CO2 Emissions Product of Methane Combustion | B58: (tonnes/yr, CO2) | C58: =(C49*C53-C56)*C79/C78 -> 85.36419988 | D58: Assumes no change in other hydrocarbon conversion
A59: Methane Emissions When/If Process Runs with Methane Control Off | B59: (tonnes/yr, CO2 eq) | C59: =C50*(1-C53) -> 9.406523402 | D59: E.g. methane emissions (in CO2e) that would take place when emissions are out of specification or control system is not operating
A60: Annual Change in N2O emissions with Proposed Technology | B60: (tonnes/yr, N2O) | C60: 0 | D60: Assumes no change in NOx, N2O, etc.
A61: Annual Change in N2O Emissions with Proposed Technology | B61: (tonnes/yr, CO2 eq) | C61: =C60*C83 -> 0
A62: Overall GHG Emissions with Proposed Control Technology | B62: (tonnes/yr, CO2 eq) | C62: =C51+C57+C58+C59+C61 -> 3595.565183 | D62: The total GHG emissions associated with proposed technology (i.e., sum of uncombusted methane, CO2 from methane combustion for the proposed technology, and impact of any N2O change)
A63: Incremental GHG Reduction from Proposed Technology Against Baseline Emissions | B63: (tonnes/yr, CO2 eq) | C63: =C52-C62 -> 690.6739808
A64: CO2e Process Inputs & Impacts | D64: Note: these are incremental compared to baseline
A65: Electricity Requirement | B65: (kW) | C65: 0 | D65: E.g., 1/2 hp motor operating continuously
A66: GHG Emissions from Electricity Required | B66: (tonnes/yr, CO2) | C66: =$C$27*24*365*C48*C65 -> 0
A67: Auxiliary Fuel Requirement | B67: (Btu/hr) | D67: Please specify fuel quality
A68: GHG Emissions from Auxiliary Fuel | B68: (tonnes/yr, CO2) | D68: and calculate related auxiliary fuel requirement emissions or note if this is due to engine derate
A69: Steam Requirement | B69: (lb/hr) | D69: Justify inputs and explain calculations as needed
A70: GHG Emissions from "Other" | B70: (tonnes/yr, CO2) | C70: 0 | D70: Identify any "other" CO2E impacts for inputs associated with proposed technology
A71: GHG Emissions from Other Inputs | B71: (tonnes/yr, CO2 eq) | C71: =C70*$C$78 -> 0
A72: Summary of LifeCycle CO2e Impacts
A73: Incremental GHG Reduction for Proposed Technology Against Baseline | B73: (tonnes/yr, CO2 eq) | C73: =C63-C66-C68-C70-C71 -> 690.6739808 | D73: Difference between operation of proposed solution and operation of baseline engine
A74: Overall GHG Emissions for Proposed Control Technology | B74: (tonnes/yr, CO2 eq) | C74: =C62+C66+C70+C71 -> 3595.565183
A76: Overall Life Cycle Analysis (LCA) CO2e Reduction | B76: =1-C74/C47 -> 0.8853275
A77: Constants & Conversion Factors
A78: Mol Weight CH4 | B78: (kg/kg-mole) | C78: 16
A79: Mol Weight CO2 | B79: (kg/kg-mole) | C79: 44
A80: Molar Volume Conversion Factor at Standard Conditions | B80: (scf/kg-mole) at 68 °F and 14.7 psia | C80: 849.5
A81: Metric Tons (tonnes) to Kilograms | B81: (tonnes/kg) | C81: 0.001 | D81: metric tons (tonnes) per kilogram
A82: Global Warming Potential (GWP) of Methane | B82: (tonnes CO2 eq / tonnes CH4) | C82: 25 | D82: Metric tons (tonnes) CO2 equivalent
A83: GWP of N2O | B83: (tonnes CO2 eq / tonnes N2O) | C83: 298 | D83: Per EPA, 100 yr GWP
A86: Levelized Cost of Carbon Abatement (LCCA)
B88: Units | C88: Input | D88: Notes by ARPA-E; Applicant may provide additional notes
A89: Baseline Capital Costs (CAPEX)
A90: Incremental Equipment Costs | B90: ($) | C90: =C120 -> 75000 | D90: Identify the baseline cost for an engine with justification. This summary figure should include installation and any other capital expenses.
A91: Proposed Solution Capital Costs (CAPEX)
A92: Installation Costs | B92: ($) | C92: 1500 | D92: Include installation labor, and all other hardware retrofits required for the proposed approach
A93: Total Incremental Capital Costs (CAPEX) | B93: ($) | C93: =C90+C92 -> 76500
A94: Annual return on CAPEX | B94: (%) | C94: 0.1
A95: Useful Life | B95: (yrs) | C95: 5 | D95: Note: Equipment life should be based on measurements consistent with actual field conditions
A96: Annual Capital Recovery Cost | B96: ($) | C96: =-PMT(C94,C95,C93) -> 20180.50728
A97: Baseline Operating Costs (OPEX)
A98: Annual Maintenance (e.g., inspection, cleaning, calibration) | B98: (hr) | C98: 40 | D98: Include required maintenance intervals and real conditions (impact of variable gas flow/composition, catalyst poisons, metal corrosion, etc.). Account hours for the total staff
A99: Fully Burdened Labor Rate (including allocation for trucks and tools) | B99: ($/hr) | C99: 200 | D99: E.g., please account for remote site work
A100: Annual Maintenance Subtotal | B100: ($/yr) | C100: =C98*C99 -> 8000
A101: Added Utility Costs (if applicable) | B101: ($/yr) | C101: 0 | D101: Include additional fuel costs for derate or to supply power/fuel to proposed solution compared to the baseline approach
A102: Added Fuel Costs (if applicable) | B102: ($/yr) | C102: 0
A103: Additional Host Site Impact Costs (if applicable) | B103: ($/yr) | C103: 1000 | D103: Include waste disposal costs or any other factors; please include details
A104: Hours Operational Disruption | B104: (hr) | C104: 0 | D104: E.g. annual hours when emissions are out of specification or control system is not operating
A105: Cost Operational Disruption | B105: ($/yr) | C105: 0 | D105: Provided by end user to Applicant
A106: Additional Incremental OPEX (if applicable) | B106: ($/yr) | C106: =C126 -> 0 | D106: As determined in the worksheet below
A107: Total Annual OPEX cost | B107: ($/yr) | C107: =C100+C101+C103+C105+C106 -> 9000 | D107: Difference between OPEX for operation of proposed solution and a baseline engine operation
A109: Total Annual Costs | B109: ($/yr) | C109: =C96+C107 -> 29180.50728 | D109: Annual Capital Cost + Annual Incremental OPEX
A111: CO2 Equivalent Emissions Abatement by Year | B111: (tonne/yr) | C111: =C63 -> 690.6739808 | D111: As calculated in the LCA for your proposed approach
A112: Saleable Product Revenues | B112: ($/yr) | C112: 0 | D112: Please add any revenues from proposed technology, e.g., credits for improved efficiency, revenue from methane sales, etc.
A114: Levelized Cost of Carbon Abatement | B114: ($/tonne) | C114: =(C109-C112)/C111 -> 42.24932181
A116: Additional CAPEX Detail
A117: Materials | B117: ($) | C117: 60000
A118: Fabrication Costs | B118: ($) | C118: 15000
A119: Etc. | B119: ($) | C119: 0 | D119: Insert additional lines as required
A120: Subtotal - Incremental Equipment Costs | B120: ($) | C120: =SUM(C117:C119) -> 75000
A122: Additional OPEX Detail
A123: Back Office Support | B123: ($/yr) | C123: 0
A124: Telecom | B124: ($/yr) | C124: =0 -> 0
A125: Etc. | B125: ($/yr) | C125: 0 | D125: Insert additional lines as required
A126: Subtotal - Additional Incremental OPEX | B126: ($/yr) | C126: =SUM(C123:C125) -> 0
A128: Supplemental IRR Calculation
A129: CO2 Credit Value of abatement | B129: ($/tonne) | C129: 50 | D129: Phase 1 value
A130: CO2 Credit Value of Abatement | B130: ($/yr) | C130: =C129*C111 -> 34533.69904 | D130: Estimated credit value multiplied by incremental tons abated through approach
A131: Saleable Product Revenues | B131: ($/yr) | C131: =C112 -> 0 | D131: as previously entered
A132: Incremental Annual Net Value from Methane Abatement | B132: ($/yr) | C132: =C130+C131-C107 -> 25533.69904
A133: Internal Rate of Return (IRR) | B133: (%) | C133: =RATE(C95,C132,(-C93),0) -> 0.1991763126 | D133: Rate of return based on incremental CAPEX required and annual value created where credit values exceed annual operating costs

Sheet Flares LCA and LCCA
A1: LifeCycle Analysis (LCA)
A2: Input Variable | B2: Issue | C2: Mitigation | D2: Notes by ARPA-E; Applicant may provide additional notes Green cells indicate applicant input is required.
A3: Qualitative Environmental Impacts | D3: Identify any environmental/permitting issues
A4: Noise
A5: Viewshed/Light
A6: HAPS
A7: Waste Disposal
A8: Other | D8: Please identify any additional qualitative environmental impacts, if any
A9: Regulatory/Permitting | B9: Standard | C9: Compliance | D9: Identify any permitting standards you believe will be relevant and indicate your ability to meet
A10: Regulatory Standard | B10: e.g., NSPS
A12: Test program conditions | B12: Units | C12: Value | D12: Provide ranges
A13: Design Flow Rate
A14: Test Flow Rate
A15: Feed Gas Composition
A16: Ambient Conditions
A18: Testing procedures | D18: Specify analytical method and error bars
A19: Methane
A20: Carbon Monoxide (g/MJ)
A21: Nitrogen Oxides (NOx, g/MJ)
A22: Nitrous Oxide (N2O, g/MJ)
A23: PM10/PM2.5 (soot, g/MJ)
A24: VOC (g/MJ)
A26: Process Input Parameters | C26: Carbon Intensity | D26: Specify assumptions for carbon footprint of inputs
A27: Electricity | B27: (tonnes CO2/kWh) | C27: 0.000707 | D27: E.g., per EPA, AVERT, U.S. national weighted average CO2 marginal emission rate, year 2018 data
A28: Auxiliary Fuel Requirement | B28: (kg CO2/kg)
A29: Steam | B29: (kg CO2/kg)
A30: Water | B30: (kg CO2/kW-hr)
A31: Other
A33: Life Cycle CO2e Reduction Calculations
B35: Units | C35: Input | D35: Notes by ARPA-E; Applicant may provide additional notes
A36: CO2e Change from Flaring Efficiency Improvement
A37: Flare Design Capacity | B37: (scf/day) | C37: 100000 | D37: E.g., majority of flares in smallest size range
A38: Annual Average Capacity | B38: (%) | C38: 0.5 | D38: E.g., 30-100%
A39: Baseline Flare On-Stream Availability | B39: (%) | C39: 1 | D39: Baseline assumed uptime
A40: Annual Flared Gas Volume | B40: (MMscf) | C40: =C37*C38*C39*365/1000000 -> 18.25
A41: Methane Concentration | B41: (mol %) | C41: 0.65
A42: Annual Flare Feed Methane | B42: (MMscf) | C42: =C40*C41 -> 11.8625
A43: Baseline Methane Feed | B43: (tonnes/yr, CH4) | C43: =C42*1000000/C77*C75*C78 -> 223.4255444
A44: Baseline Methane Feed CO2e | B44: (tonnes/yr, CO2 eq) | C44: =C43*GWP_Methane -> 5585.638611 | D44: LCA based on only methane feed to flare. Assumes baseline 100% combustion efficiency for all non-methane hydrocarbons does not change, so non-methane emissions net out to zero
A45: Baseline Methane Combustion Efficiency | B45: (%) | C45: 0.98 | D45: Assume EPA flare efficiency
A46: Baseline Uncombusted Methane Emissions | B46: (tonnes/yr, CH4) | C46: =C39*(1-C45)*C43+(1-C39)*C43 -> 4.468510889
A47: Baseline Uncombusted Methane Emissions, CO2e | B47: (tonnes/yr, CO2 eq) | C47: =C46*GWP_Methane -> 111.7127722
A48: Baseline CO2 Emissions Product of Methane Combustion | B48: (tonnes/yr, CO2) | C48: =C39*C43*C45*C76/C75 -> 602.1318423
A49: Baseline Flare GHG Emissions | B49: (tonnes/yr, CO2) | C49: =C48+C47 -> 713.8446145 | D49: Sum of uncombusted methane and CO2 from methane combustion
A50: Proposed Control Technology Onstream Availability | B50: (%) | C50: 1 | D50: Please specify on-stream availability (and note on Line 55 any emissions when control is off-stream)
A51: Proposed Control Technology Efficiency, Lifetime Average | B51: (%) | C51: 0.995 | D51: Please account for any performance deterioration that would not be rectified by normal maintenance in this figure
A52: Proposed Control Technology Annual Methane Emissions During Operation | B52: (tonnes/yr, CH4) | C52: =C43*C50*(1-C51) -> 1.117127722 | D52: Methane emissions when technology is operating. Uncontrolled methane emissions if process operates while flare is down on line 55
A53: Proposed Control Technology Annual Methane Emissions During Operation | B53: (tonnes/yr, CO2 eq) | C53: =C52*$C$79 -> 27.92819305
A54: Proposed Control Technology CO2 Emissions Product of Methane Combustion | B54: (tonnes/yr, CO2) | C54: =C43*C50*C51*C76/C75 -> 611.348146
A55: Methane Emissions When/If Process Runs with Methane Control Off | B55: (tonnes/yr, CO2 eq) | C55: =C43*(1-C50)*C79 -> 0 | D55: E.g. methane emissions (in CO2e) that would take place when emissions are out of specification or control system is not operating
A56: Annual Change in N2O Emissions with Proposed Technology | B56: (tonnes/yr, N2O) | C56: 0 | D56: Assumes no change in Nox, N2O, etc.
A57: Annual Change in N2O Emissions with Proposed Technology | B57: (tonnes/yr, CO2 eq) | C57: =C56*C80 -> 0
A58: Subtotal GHG Emissions for Proposed Control Technology | B58: (tonnes/yr, CO2) | C58: =C53+C54+C55+C57 -> 639.276339 | D58: The total GHG emissions associated with proposed technology (i.e., sum of uncombusted methane, CO2 from methane combustion for the proposed technology, and impact of any N2O change)
A59: CO2e Process Inputs & Impacts
A60: Electricity Requirement | B60: (kW) | C60: =(0.5)*(0.746)*(1/0.9) -> 0.4144444444 | D60: E.g., 1/2 hp motor operating continuously, assume power linear with capacity
A61: GHG Emissions from Electricity Required | B61: (tonnes/yr, CO2) | C61: =$C$27*24*365*C38*C39*C60 -> 1.283393533
A62: Auxiliary Fuel Requirement | B62: (Btu/hr) | D62: Please specify fuel quality
A63: GHG Emissions from Auxiliary Fuel | B63: (tonnes, CO2) | D63: and calculate related emissions from auxiliary fuel requirement
A64: Steam Requirement | B64: (lb/hr) | D64: E.g., steam assist
A65: GHG Emissions from Steam | B65: (tonnes, CO2) | C65: 0 | D65: Justify inputs and explain calculation assumptions as needed
A66: GHG Emissions from Other Inputs | B66: (tonnes, CO2 eq) | D66: Identify any "other" CO2E impacts for inputs associated with proposed techology
A67: Subtotal of GHG Emissions from Process Inputs | B67: (tonnes, CO2 eq) | C67: =C61+C63+C65+C66 -> 1.283393533
A68: Summary of LifeCycle CO2e Impacts
A69: Overall GHG Emissions for Proposed Control Technology | B69: (tonnes/yr, CO2 eq) | C69: =C58+C67 -> 640.5597326
A70: Incremental GHG Reduction for Proposed Technology Against Baseline | B70: (tonnes/yr, CO2 eq) | C70: =C49-C69 -> 73.28488192 | D70: Difference between operation of Proposed Solution and operation of a baseline flare operation
A72: Overall Life Cycle Analysis (LCA) CO2e Reduction | B72: =1-C69/C44 -> 0.8853202333
A74: Constants & Conversion Factors
A75: Mol Weight CH4 | B75: (kg/kg-mole) | C75: 16
A76: Mol Weight CO2 | B76: (kg/kg-mole) | C76: 44
A77: Molar Volume Conversion Factor at Standard Conditions | B77: (scf/kg-mole) at 68 °F and 14.7 psia | C77: 849.5
A78: Metric Tons (tonnes) to Kilograms | B78: (tonnes/kg) | C78: 0.001 | D78: metric tons (tonnes) per kilogram
A79: Global Warming Potential (GWP) of Methane | B79: (tonnes CO2 eq / tonnes CH4) | C79: 25 | D79: Metric tons (tonnes) CO2 equivalent
A80: GWP of N2O | B80: (tonnes CO2 eq / tonnes N2O) | C80: 298 | D80: Per EPA, 100 yr GWP
A84: Levelized Cost of Carbon Abatement (LCCA)
B86: Units | C86: Input | D86: Notes by ARPA-E; Applicant may provide additional notes
A87: Baseline Capital Costs (CAPEX)
A88: Total Equipment Costs | B88: ($) | C88: =50000+1500 -> 51500 | D88: Identify the baseline cost for a flare that would address basic EPA requirements at this flowrate. This summary figure should include installation and any other capital expenses.
A89: Proposed Solution Capital Costs (CAPEX)
A90: Equipment Costs | B90: ($) | C90: =C122 -> 55000 | D90: Provide detail in worksheet below as required
A91: Installation Costs | B91: ($) | C91: 1500 | D91: Include installation labor, and all other hardware retrofits required for the proposed approach
A92: Total Capital Costs (CAPEX) | B92: ($) | C92: =C90+C91 -> 56500
A93: Total Incremental Capital Costs (CAPEX) | B93: ($) | C93: =C92-C88 -> 5000 | D93: Difference between CAPEX for operation of Proposed Solution and a baseline flare operation
A94: Discount Rate | B94: (%) | C94: 0.1
A95: Useful Life | B95: (yrs) | C95: 5 | D95: Equipment life should be based on measurements consistent with actual field conditions
A96: Annual Capital Recovery Cost | B96: ($) | C96: =-PMT(C94,C95,C93) -> 1318.987404
A97: Baseline Operating Costs (OPEX)
A98: Total Annual OPEX costs | B98: ($/yr) | C98: 6000 | D98: Includes all maintenance, labor, consumables, utilities
A99: Proposed Solution Operating Costs (OPEX)
A100: Annual Maintenance (inspection, cleaning, calibration) | B100: (hr) | C100: 40 | D100: Based on required maintenance intervals and real conditions (impact of variable gas flow/composition, catalyst poisons, metal corrosion, etc.)
A101: Fully Burdened Labor Rate (including allocation for trucks and tools) | B101: ($/hr) | C101: 200 | D101: Account for remote site work
A102: Annual Maintenance Subtotal | B102: ($/yr) | C102: =C100*C101 -> 8000
A103: Utility Costs | B103: ($/yr) | C103: =0.1*24*365*C38*C39*C60 -> 181.5266667 | D103: Additional power cost for proposed solution, $0.10/kW-hr
A104: Fuel Costs | B104: ($/yr) | C104: 0 | D104: Additional fuel costs for proposed solution
A105: Other Host Site Impact Costs | B105: ($/yr) | C105: 0 | D105: Waste disposal costs or any other factors; please specify
A106: Hours Operational Disruption | B106: (hr) | C106: 0 | D106: By Applicant - identify any costs required to ensure proposed approach operates as specified
A107: Cost Operational Disruption | B107: ($/yr) | C107: 0 | D107: Provided by end user to Applicant
A108: Additional Incremental OPEX | B108: ($/yr) | C108: =C128 -> 240 | D108: As determined in the worksheet below
A109: Total Annual OPEX cost | B109: ($/yr) | C109: =C102+C103+C105+C107+C108 -> 8421.526667
A110: Total Incremental Annual OPEX cost | B110: ($/yr) | C110: =C109-C98 -> 2421.526667 | D110: Difference between OPEX for operation of Proposed Solution and a baseline flare operation
A112: Total Annual Costs | B112: ($/yr) | C112: =C96+C110 -> 3740.514071 | D112: Annual Capital Cost + Annual Incremental OPEX
A114: CO2 Equivalent Emissions Abatement by Year | B114: (tonnes/yr) | C114: =C70 -> 73.28488192 | D114: As calculated in the LCA for your proposed approach
A115: Saleable Product Revenues | B115: ($/yr) | C115: 0 | D115: Please add any revenues from technology products or by-products
A116: Levelized Cost of Carbon Abatement | B116: ($/tonne) | C116: =(C112-C115)/C114 -> 51.04073272
A118: Additional CAPEX Detail
A119: Materials | B119: ($) | C119: 35000
A120: Fabrication Costs | B120: ($) | C120: 20000
A121: Etc. | B121: ($) | C121: 0 | D121: Insert additional lines as required
A122: Subtotal - Incremental Equipment Costs | B122: ($) | C122: =SUM(C119:C121) -> 55000
A124: Additional OPEX Detail
A125: Back Office Support | B125: ($/yr) | C125: 0
A126: Telecom | B126: ($/yr) | C126: =12*20 -> 240
A127: Etc. | B127: ($/yr) | C127: 0 | D127: Insert additional lines as required
A128: Subtotal - Additional Incremental OPEX | B128: ($/yr) | C128: =SUM(C125:C127) -> 240
A130: Supplemental IRR Calculation
A131: CO2 Credit Value of abatement | B131: ($/tonne) | C131: 50 | D131: Phase 1 value
A132: CO2 Credit Value of Abatement | B132: ($/yr) | C132: =C131*C114 -> 3664.244096 | D132: Estimated credit value multiplied by incremental tons abated through approach
A133: Saleable Product Revenues | B133: ($/yr) | C133: =C115 -> 0 | D133: as previously entered
A134: Incremental Annual Net Value from Methane Abatement | B134: ($/yr) | C134: =C132+C133-C110 -> 1242.717429
A135: Internal Rate of Return (IRR) | B135: (%) | C135: =RATE(C95,C134,(-C93),0) -> 0.07709754939 | D135: Rate of return based on incremental CAPEX required and annual value created where credit values exceed annual operating costs

Sheet VAM LCA and LCCA
A1: LifeCycle Analysis (LCA)
A2: Input Variable | B2: Issue | C2: Mitigation | D2: Notes by ARPA-E; Applicant may provide additional notes Green cells indicate applicant input is required.
A3: Qualitative Environmental Impacts | D3: Identify any environmental/permitting issues
A4: Noise
A5: Viewshed/light
A6: HAPS
A7: Waste disposal
A8: Other | D8: Please identify any additional qualitative environmental impacts, if any
A9: Regulatory/Permitting | B9: Standard | C9: Compliance | D9: Identify any permitting standards you believe will be relevant and indicate your ability to meet
A10: Regulatory Standard | B10: e.g., NSPS
A12: Test program conditions | B12: Units | C12: Value | D12: Provide ranges
A13: Design flow rate
A14: Test flow rate
A15: Feed gas composition
A16: Ambient conditions
A18: Testing procedures | D18: Specify analytical method and error bars
A19: Methane
A20: Carbon Monoxide (g/MJ)
A21: Nitrogen Oxides (NOx, g/MJ)
A22: Nitrous Oxide (N2O, g/MJ)
A23: PM10/PM2.5 (soot, g/MJ)
A24: VOC (g/MJ)
A26: Process Input Parameters | C26: Carbon intensity | D26: Specify assumptions for carbon footprint of inputs
A27: Electricity | B27: (tonnes CO2/kWh) | C27: 0.000707 | D27: E.g., per EPA, AVERT, U.S. national weighted average CO2 marginal emission rate, year 2018 data
A28: Auxiliary fuel | B28: (kg CO2/kg)
A29: Steam | B29: (kg CO2/kg)
A30: Water | B30: (kg CO2/kW-hr)
A31: Other
A33: Life Cycle CO2e Reduction Calculations
B35: Units | C35: Input | D35: Notes by ARPA-E; Applicant may provide additional notes
A36: GHG Change from Methane Abatement Improvement
A37: Design Ventilation Shaft Flow | B37: (scfm) | C37: 100000
A38: Annual Average Capacity | B38: (%) | C38: 0.8 | D38: as a fraction of the design ventilation flow
A39: Annual Average Methane Concentration | B39: (%) | C39: 0.006 | D39: 0.2-1.6%
A40: Baseline VAM Unabated Methane Emissions | B40: (tonnes/yr, CH4) | C40: =C37*60*24*365*C38*C39/C69*C67*C70 -> 4751.745733
A41: Baseline GHG from VAM | B41: (tonnes/yr, CO2 eq) | C41: =C40*C71 -> 118793.6433
A42: Proposed Technology On-stream Availability | B42: (%) | C42: 0.99 | D42: uptime
A43: Destruction Efficiency, Lifetime Average | B43: (%) | C43: 0.995 | D43: Please account for any performance deterioration not rectified by normal maintenance (e.g., catalyst deactivation) in this figure
A44: Proposed Control Technology Annual Methane Emissions During Operation | B44: (tonnes, CH4) | C44: =C40*C42*(1-C43) -> 23.52114138 | D44: Methane emissions when technology is operating. Uncontrolled methane emissions if VAM unit operates when methane emissions unit is down is on following line
A45: Proposed Control Technology Annual Methane Emissions During Operation | B45: (tonnes, CO2 eq) | C45: =C44*C71 -> 588.0285344
A46: Proposed Control Technology CO2 from Methane Oxidation | B46: (tonnes/yr, CO2) | C46: =C40*C42*C43*C68/C67 -> 12871.94462 | D46: Assumes no other hydrocarbons in VAM gas
A47: Methane Emissions When/If Process Runs with Methane Control Off | B47: (tonnes/yr, CO2 eq) | C47: =C40*(1-C42)*C71 -> 1187.936433 | D47: E.g. methane emissions (in CO2e) that would take place when emissions are out of specification or control system is not operating
A48: Proposed Control Technology Annual N2O Emissions | B48: (tonnes, N2O) | C48: 0 | D48: Please identify any N2O that would be produced
A49: Proposed Control Technology Annual N2O Emissions | B49: (tonnes, CO2 eq) | C49: =C48*C73 -> 0
A50: Subtotal GHG Emissions for Proposed Control Technology | B50: (tonnes/yr, CO2) | C50: =C47+C45+C46+C49 -> 14647.90959 | D50: The total GHG emissions associated with proposed technology (i.e., sum of uncombusted methane, CO2 from methane combustion for the proposed technology, and impact of any N2O change)
A51: CO2e Process Inputs
A52: Electricity Requirement | B52: (kW) | C52: =(600)*(0.746)*(1/0.9) -> 497.3333333 | D52: e.g., 600 hp motor operating continuously, assume power linear with capacity
A53: GHG Emissions from Electricity Required | B53: (tonnes, CO2) | C53: =$C$27*24*365*C38*C42*C52 -> 2439.474428 | D53: should include any transient/start-up requirements
A54: Auxiliary fuel Requirement | B54: (Btu/hr) | D54: Please specify fuel quality
A55: GHG Emissions from Auxiliary fuel | B55: (tonnes, CO2) | D55: and calculate related emissions from auxiliary fuel requirement
A56: Steam Requirement | B56: (lb/hr) | D56: E.g., steam assist
A57: GHG Emissions from Steam | B57: (tonnes, CO2) | C57: 0 | D57: Justify inputs and explain calculation assumptions as needed
A58: GHG Emissions from Other Inputs | B58: (tonnes, CO2 eq) | D58: Identify any "other" CO2E impacts for inputs associated with proposed techology
A59: Subtotal of GHG Emissions from Process Inputs | B59: (tonnes, CO2 eq) | C59: =C54+C55+C56+C58 -> 0
A60: Summary of LifeCycle CO2e Impacts
A61: Overall GHG Emissions with Proposed Control Technology | B61: (tonnes/yr, CO2 eq) | C61: =C45+C46+C49+C59 -> 13459.97315
A62: GHG Reduction for Proposed Technology Against Baseline | B62: (tonnes/yr, CO2 eq) | C62: =C41-C61 -> 105333.6702
A64: Overall Life Cycle Analysis (LCA) CO2e reduction | B64: =1-C61/C41 -> 0.8866945
A66: Constants & Conversion Factors
A67: Mol Weight CH4 | B67: (kg/kg-mole) | C67: 16
A68: Mol Weight CO2 | B68: (kg/kg-mole) | C68: 44
A69: Molar Volume Conversion Factor at Standard Conditions | B69: (scf/kg-mole) at 68 °F and 14.7 psia | C69: 849.5
A70: Metric Tons (tonnes) to Kilograms | B70: (tonnes/kg) | C70: 0.001 | D70: metric tons (tonnes) per kilogram
A71: Global Warming Potential (GWP) of Methane | B71: (tonnes CO2 eq / tonnes CH4) | C71: 25 | D71: Metric tons (tonnes) CO2 equivalent
A72: GWP of N2O | B72: (tonnes CO2 eq / tonnes N2O) | C72: 298 | D72: Per EPA, 100 yr GWP
A75: Levelized Cost of Carbon Abatement (LCCA)
B77: Units | C77: Input | D77: Notes by ARPA-E; Applicant may provide additional notes
A78: Capital Costs (CAPEX)
A79: Equipment Costs | B79: ($) | C79: =C108 -> 20020000 | D79: Provide detail in worksheet below as necessary
A80: Installation Costs | B80: ($) | C80: 5000000 | D80: Include installation labor, and all other hardware retrofits required for the proposed approach
A81: Total Capital Costs (CAPEX) | B81: ($) | C81: =C79+C80 -> 25020000
A82: Annual return on CAPEX | B82: (%) | C82: 0.1
A83: Useful life | B83: (yrs) | C83: 10 | D83: Equipment life should be based on measurements consistent with actual field conditions
A84: Annual Capital Recovery Cost | B84: ($) | C84: =-PMT(C82,C83,C81) -> 4071889.78
A85: Incremental Operating Costs (OPEX)
A86: Annual Maintenance (inspection, cleaning, calibration) | B86: (hr) | C86: =0.06*C81 -> 1501200 | D86: Based on required maintenance intervals and real conditions (impact of variable gas flow/composition, catalyst poisons, metal corrosion, etc.)
A87: Fully Burdened Labor Rate (including allocation for trucks and tools) | B87: ($/hr) | C87: 100 | D87: Account for remote site work
A88: Staff | B88: (persons) | C88: 8
A89: Annual Maintenance Labor | B89: ($/yr) | C89: =C88*52*40*C87 -> 1664000
A90: Added Fuel/Utility Costs | B90: ($/yr) | C90: 1000 | D90: Additional fuel costs to supply power/fuel to proposed solution
A91: Additional Host Site Impact Costs | B91: ($/yr) | C91: 1000 | D91: Waste disposal costs or any other factors; please specify
A92: Hours Operational Disruption | B92: (hr) | C92: 0 | D92: By Applicant
A93: Cost Operational Disruption | B93: ($/yr) | C93: 0 | D93: Provided by end user to Applicant
A94: Additional Incremental OPEX | B94: ($/yr) | C94: =C114 -> 240 | D94: As determined in the worksheet below
A95: Total Annual OPEX cost | B95: ($/yr) | C95: =C86+C89+C90+C91+C93+C94 -> 3167440
A97: Total Annual Costs | B97: ($/yr) | C97: =C84+C95 -> 7239329.78
A99: CO2 Equivalent Emissions Abatement by Year | B99: (tonnes/yr) | C99: =C62 -> 105333.6702 | D99: As calculated in the LCA for your proposed approach
A100: Saleable Product Revenues | B100: ($/yr) | C100: 0 | D100: Please add any revenues from technology products or by-products
A102: Levelized Cost of Carbon Abatement | B102: ($/tonne) | C102: =(C97-C100)/C99 -> 68.72759459
A104: Additional CAPEX Detail
A105: Materials | B105: ($) | C105: 20000000
A106: Fabrication Costs | B106: ($) | C106: 20000
A107: Etc. | B107: ($) | C107: 0 | D107: Insert additional lines as required
A108: Subtotal - Incremental Equipment Costs | B108: ($) | C108: =SUM(C105:C107) -> 20020000
A110: Additional OPEX Detail
A111: Back Office Support | B111: ($/yr) | C111: 0
A112: Telecom | B112: ($/yr) | C112: =12*20 -> 240
A113: Etc. | B113: ($/yr) | C113: 0 | D113: Insert additional lines as required
A114: Subtotal - Additional Incremental OPEX | B114: ($/yr) | C114: =SUM(C111:C113) -> 240
A116: Supplemental IRR Calculation
A117: CO2 Credit Value of abatement | B117: ($/tonne) | C117: 50 | D117: Phase 1 value
A118: CO2 Credit Value of Abatement | B118: ($/yr) | C118: =C117*C99 -> 5266683.508 | D118: Estimated credit value multiplied by incremental tons abated through approach
A119: Saleable Product Revenues | B119: ($/yr) | C119: =C100 -> 0 | D119: as previously entered
A120: Incremental Annual Net Value from Methane Abatement | B120: ($/yr) | C120: =C118+C119-C95 -> 2099243.508
A121: Internal Rate of Return (IRR) | B121: (%) | C121: =RATE(C83,C120,(-C81),0) -> -0.03070166959 | D121: Rate of return based on incremental CAPEX required and annual value created where credit values exceed annual operating costs
